Workbook

Sheet 部分免徵三分之二裁判費計算表
A1: 附表 ：部分訴訟標的價(金)額免徴2/3裁判費之計算表
A3: 一般財產訴訟標的價(金)額 | B3: 2373456 | C3: 總計
A4: 免徴2/3訴訟標的價(金)額 | B4: 1782345 | C4: =B3+B4 -> 4155801
A6: 項目 | B6: 第一審財產訴訟 | C6: 第二、三審財產訟訟
A7: 原應徵收裁判費 | B7: =D20 -> 42184 | C7: =E20 -> 63276
A8: (勞工)免徴2/3裁判費 | B8: =D30 -> 12481 | C8: =E30 -> 18721
A9: 扣除免徴2/3後應徵收裁判費 | B9: =ROUNDDOWN(B7-B8,0) -> 29703 | C9: =ROUNDDOWN(C7-C8,0) -> 44555
A10: 已繳納裁判費
A11: 應補繳裁判費 | B11: =B9-B10 -> 29703 | C11: =C9-C10 -> 44555
A13: 訴訟標的價(金)額 | B13: 第一審徵收標準 | C13: 第二、三審徵收標準 | D13: 第一審裁判費 | E13: 第二、三審裁判費 | G13: 減萬 | H13: 訴訟標的 | I13: 括 | J13: 一審費率 | K13: 二、三審費率 | L13: 一審基本費 | M13: 二、三審基本費 | N13: 介於 | O13: 幾萬
A14: 10萬元以下 | B14: 1,000元 | C14: 1,500元 | D14: =IFERROR(IF($O$14>0,L14,0),"") -> 1000 | E14: =IFERROR(IF($O$14>0,M14,0),"") -> 1500 | G14: 10 | H14: 1e-10 | I14: 逾 | J14: 0 | K14: 0 | L14: 1000 | M14: 1500 | N14: =IF(AND(A21>0,A21<=100000),1,0) -> 0 | O14: =MIN(ROUNDUP($A$21/10000,0),10) -> 10
A15: 逾10萬元～100萬元部分 | B15: 110元/萬 | C15: 165元/萬 | D15: =IFERROR(J15*$G15,"") -> 9900 | E15: 14850 | G15: =O15-O14 -> 90 | H15: 100000.001 | I15: 逾 | J15: 110 | K15: 165 | L15: 10900 | M15: 16350 | N15: =IF(AND(A21>100000,A21<=1000000),1,0) -> 0 | O15: =MIN(ROUNDUP($A$21/10000,0),100) -> 100
A16: 逾100萬元～一千萬元部分 | B16: 99元/萬 | C16: 148.5元/萬 | D16: 31284 | E16: 46926 | G16: =O16-O15 -> 316 | H16: 1000000.001 | I16: 逾 | J16: 99 | K16: 148.5 | L16: 100000 | M16: 150000 | N16: =IF(AND(A21>1000000,A21<=10000000),1,0) -> 1 | O16: =MIN(ROUNDUP($A$21/10000,0),1000) -> 416
A17: 逾一千萬元～一億元部分 | B17: 88元/萬 | C17: 132元/萬 | D17: 0 | E17: 0 | G17: =O17-O16 -> 0 | H17: 10000000 | I17: 逾 | J17: 88 | K17: 132 | L17: 892000 | M17: 1338000 | N17: =IF(AND(A21>10000000,A21<=100000000),1,0) -> 0 | O17: =MIN(ROUNDUP($A$21/10000,0),10000) -> 416
A18: 逾一億元～十億元部分 | B18: 77元/萬 | C18: 115.5元/萬 | D18: 0 | E18: 0 | G18: =O18-O17 -> 0 | H18: 100000000 | I18: 逾 | J18: 77 | K18: 115.5 | L18: 77822000 | M18: 11733000 | N18: =IF(AND(A21>100000000,A21<=1000000000),1,0) -> 0 | O18: =MIN(ROUNDUP($A$21/10000,0),100000) -> 416
A19: 逾十億元部分 | B19: 66元/萬 | C19: 99元/萬 | D19: 0 | E19: 0 | G19: =O19-O18 -> 0 | H19: 1000000000 | I19: 逾 | J19: 66 | K19: 99 | N19: =IF(A21>1000000000,1,0) -> 0 | O19: =MIN(ROUNDUP($A$21/10000,0),1000000) -> 416
A20: 訴訟標的價(金)額總計 | C20: 應徵收裁判費 | D20: =IFERROR(ROUNDDOWN(SUM(D14:D19),0),"") -> 42184 | E20: =IFERROR(ROUNDDOWN(SUM(E14:E19),0),"") -> 63276
A21: =C4 -> 4155801
A23: 訴訟標的價(金)額 | B23: 第一審徵收標準 | C23: 第二、三審徵收標準 | D23: 第一審裁判費 | E23: 第二、三審裁判費 | G23: 減萬 | H23: 訴訟標的 | I23: 括 | J23: 一審費率 | K23: 二、三審費率 | L23: 一審基本費 | M23: 二、三審基本費 | N23: 介於 | O23: 幾萬
A24: 10萬元以下 | B24: 1,000元 | C24: 1,500元 | D24: =IFERROR(IF($O$14>0,L24,0),"") -> 1000 | E24: =IFERROR(IF($O$14>0,M24,0),"") -> 1500 | G24: 10 | H24: 1e-10 | I24: 逾 | J24: 0 | K24: 0 | L24: 1000 | M24: 1500 | N24: =IF(AND(A31>0,A31<=100000),1,0) -> 0 | O24: =MIN(ROUNDUP($A$31/10000,0),10) -> 10
A25: 逾10萬元～100萬元部分 | B25: 110元/萬 | C25: 165元/萬 | D25: =IFERROR(J25*$G25,"") -> 9900 | E25: =IFERROR(K25*$G25,"") -> 14850 | G25: =O25-O24 -> 90 | H25: 100000.001 | I25: 逾 | J25: 110 | K25: 165 | L25: 10900 | M25: 16350 | N25: =IF(AND(A31>100000,A31<=1000000),1,0) -> 0 | O25: =MIN(ROUNDUP($A$31/10000,0),100) -> 100
A26: 逾100萬元～一千萬元部分 | B26: 99元/萬 | C26: 148.5元/萬 | D26: 7821 | E26: 11731.5 | G26: =O26-O25 -> 79 | H26: 1000000.001 | I26: 逾 | J26: 99 | K26: 148.5 | L26: 100000 | M26: 150000 | N26: =IF(AND(A31>1000000,A31<=10000000),1,0) -> 1 | O26: =MIN(ROUNDUP($A$31/10000,0),1000) -> 179
A27: 逾一千萬元～一億元部分 | B27: 88元/萬 | C27: 132元/萬 | D27: 0 | E27: 0 | G27: =O27-O26 -> 0 | H27: 10000000 | I27: 逾 | J27: 88 | K27: 132 | L27: 892000 | M27: 1338000 | N27: =IF(AND(A31>10000000,A31<=100000000),1,0) -> 0 | O27: =MIN(ROUNDUP($A$31/10000,0),10000) -> 179
A28: 逾一億元～十億元部分 | B28: 77元/萬 | C28: 115.5元/萬 | D28: 0 | E28: 0 | G28: =O28-O27 -> 0 | H28: 100000000 | I28: 逾 | J28: 77 | K28: 115.5 | L28: 77822000 | M28: 11733000 | N28: =IF(AND(A31>100000000,A31<=1000000000),1,0) -> 0 | O28: =MIN(ROUNDUP($A$31/10000,0),100000) -> 179
A29: 逾十億元部分 | B29: 66元/萬 | C29: 99元/萬 | D29: 0 | E29: 0 | G29: =O29-O28 -> 0 | H29: 1000000000 | I29: 逾 | J29: 66 | K29: 99 | N29: =IF(A31>1000000000,1,0) -> 0 | O29: =MIN(ROUNDUP($A$31/10000,0),1000000) -> 179
A30: 免徴2/3裁判費之訴訟標的價(金)額 | C30: 免徴2/3之裁判費 | D30: =IFERROR(ROUNDUP(ROUNDDOWN(SUM(D24:D29),0)*2/3,0),"") -> 12481 | E30: =IFERROR(ROUNDUP(ROUNDDOWN(SUM(E24:E29),0)*2/3,0),"") -> 18721
A31: =B4 -> 1782345
A33: 勞動事件法第12條第1項：「因確認僱傭關係或給付工資、退休金或資遣費涉訟，勞工或工會起訴或上訴，暫免徵收裁判費三分之二。」
A34: 勞動事件法第13條：「工會依民事訴訟法第四十四條之一及本法第四十二條提起之訴訟，其訴訟標的金額或價額超過新臺幣一百萬元者，超過部分暫免徵收裁判費。工會依第四十條規定提起之訴訟，免徵裁判費。」
